[Event "Titled Tuesday Blitz June 14 Late 2022"]
[White "Paravyan, David"]
[Black "Bilych, Olexiy"]
[WhiteFideId "4194985"]
[BlackFideId "14156504"]
[WhiteElo "2569"]
[BlackElo "2189"]
[Result "0-1"]
[Round "08"]
[TimeControl "180+1"]
[Date "2022.06.14"]
[WhiteClock "0:01:18"]
[BlackClock "0:01:27"]

1. e4 {[%clk 0:03:00]}  e5 {[%clk 0:03:00]} 2. Nf3 {[%clk 0:03:00]}  Nc6 {[%clk 0:03:00]} 3. Nc3 {[%clk 0:03:01]}  Nf6 {[%clk 0:03:01]} 4. d4 {[%clk 0:03:01]}  exd4 {[%clk 0:03:01]} 5. Nxd4 {[%clk 0:03:02]}  Bb4 {[%clk 0:03:01]} 6. Nxc6 {[%clk 0:03:03]}  bxc6 {[%clk 0:03:01]} 7. Bd3 {[%clk 0:03:03]}  d5 {[%clk 0:03:02]} 8. exd5 {[%clk 0:03:04]}  O-O {[%clk 0:03:02]} 9. O-O {[%clk 0:03:05]}  cxd5 {[%clk 0:03:02]} 10. Bg5 {[%clk 0:03:05]}  c6 {[%clk 0:02:59]} 11. Qf3 {[%clk 0:03:05]}  Rb8 {[%clk 0:02:58]} 12. h3 {[%clk 0:03:00]}  Bd6 {[%clk 0:02:54]} 13. b3 {[%clk 0:02:59]}  h6 {[%clk 0:02:53]} 14. Bxf6 {[%clk 0:02:58]}  Qxf6 {[%clk 0:02:54]} 15. Qxf6 {[%clk 0:02:58]}  gxf6 {[%clk 0:02:55]} 16. Ne2 {[%clk 0:02:59]}  c5 {[%clk 0:02:51]} 17. Rad1 {[%clk 0:02:57]}  Be5 {[%clk 0:02:41]} 18. f4 {[%clk 0:02:55]}  Bc7 {[%clk 0:02:40]} 19. Nc3 {[%clk 0:02:53]}  Bb7 {[%clk 0:02:23]} 20. Nb5 {[%clk 0:02:53]}  Bb6 {[%clk 0:02:22]} 21. c4 {[%clk 0:02:53]}  Rbd8 {[%clk 0:02:19]} 22. Nc3 {[%clk 0:02:52]}  d4 {[%clk 0:02:17]} 23. Ne4 {[%clk 0:02:51]}  Bxe4 {[%clk 0:02:17]} 24. Bxe4 {[%clk 0:02:51]}  Rfe8 {[%clk 0:02:16]} 25. Rfe1 {[%clk 0:02:39]}  Ba5 {[%clk 0:02:14]} 26. Re2 {[%clk 0:02:40]}  f5 {[%clk 0:02:11]} 27. Bd3 {[%clk 0:02:39]}  Rxe2 {[%clk 0:02:12]} 28. Bxe2 {[%clk 0:02:40]}  Re8 {[%clk 0:02:09]} 29. Kf2 {[%clk 0:02:40]}  Kg7 {[%clk 0:02:09]} 30. Rd3 {[%clk 0:02:11]}  Kf6 {[%clk 0:02:07]} 31. Bf3 {[%clk 0:02:11]}  Be1+ {[%clk 0:01:58]} 32. Kf1 {[%clk 0:02:05]}  Bg3 {[%clk 0:01:59]} 33. Be2 {[%clk 0:02:05]}  Bxf4 {[%clk 0:01:59]} 34. Rf3 {[%clk 0:02:05]}  Bc7 {[%clk 0:01:56]} 35. g3 {[%clk 0:02:00]}  Kg5 {[%clk 0:01:39]} 36. h4+ {[%clk 0:01:50]}  Kf6 {[%clk 0:01:39]} 37. Bd3 {[%clk 0:01:50]}  f4 {[%clk 0:01:38]} 38. gxf4 {[%clk 0:01:37]}  Ba5 {[%clk 0:01:33]} 39. Be2 {[%clk 0:01:35]}  Bd2 {[%clk 0:01:30]} 40. Kf2 {[%clk 0:01:20]}  Rg8 {[%clk 0:01:27]} 41. Rg3 {[%clk 0:01:18]}  Be1+ {[%clk 0:01:27]} 0-1


[Site "https://www.chess.com"]

[Event "Titled Tuesday Blitz June 14 Late 2022"]
[White "Pinheiro, Iung Alicio de O."]
[Black "Moroni, Luca Jr"]
[WhiteFideId "2104350"]
[BlackFideId "865834"]
[WhiteElo "2283"]
[BlackElo "2573"]
[Result "0-1"]
[Round "08"]
[TimeControl "180+1"]
[Date "2022.06.14"]
[WhiteClock "0:00:15"]
[BlackClock "0:00:22"]

1. e4 {[%clk 0:03:00]}  e5 {[%clk 0:02:59]} 2. Bc4 {[%clk 0:02:57]}  f5 {[%clk 0:02:59]} 3. d3 {[%clk 0:02:44]}  Nf6 {[%clk 0:02:56]} 4. Nc3 {[%clk 0:02:40]}  c6 {[%clk 0:02:53]} 5. Bg5 {[%clk 0:02:36]}  b5 {[%clk 0:02:47]} 6. Bb3 {[%clk 0:02:35]}  b4 {[%clk 0:02:47]} 7. Nce2 {[%clk 0:02:30]}  d5 {[%clk 0:02:47]} 8. Nf3 {[%clk 0:02:19]}  Bd6 {[%clk 0:02:46]} 9. O-O {[%clk 0:02:01]}  h6 {[%clk 0:02:42]} 10. Bxf6 {[%clk 0:01:58]}  Qxf6 {[%clk 0:02:43]} 11. exd5 {[%clk 0:01:58]}  g5 {[%clk 0:02:44]} 12. d4 {[%clk 0:01:56]}  e4 {[%clk 0:02:37]} 13. Ne5 {[%clk 0:01:56]}  f4 {[%clk 0:02:37]} 14. dxc6 {[%clk 0:01:51]}  h5 {[%clk 0:02:25]} 15. c3 {[%clk 0:01:36]}  h4 {[%clk 0:02:16]} 16. f3 {[%clk 0:01:17]}  h3 {[%clk 0:02:13]} 17. g3 {[%clk 0:01:17]}  g4 {[%clk 0:01:55]} 18. Nxf4 {[%clk 0:01:04]}  gxf3 {[%clk 0:01:53]} 19. Qd2 {[%clk 0:00:58]}  Bxe5 {[%clk 0:01:20]} 20. dxe5 {[%clk 0:00:57]}  Qxe5 {[%clk 0:01:21]} 21. Rae1 {[%clk 0:00:30]}  Bf5 {[%clk 0:01:16]} 22. Bd5 {[%clk 0:00:29]}  Na6 {[%clk 0:01:08]} 23. Rxf3 {[%clk 0:00:28]}  O-O-O {[%clk 0:01:06]} 24. c4 {[%clk 0:00:28]}  Rhg8 {[%clk 0:00:53]} 25. Rff1 {[%clk 0:00:27]}  Rg4 {[%clk 0:00:47]} 26. Kh1 {[%clk 0:00:26]}  Kb8 {[%clk 0:00:39]} 27. Qe3 {[%clk 0:00:26]}  Nc7 {[%clk 0:00:34]} 28. Rf2 {[%clk 0:00:25]}  Rg7 {[%clk 0:00:25]} 29. Nd3 {[%clk 0:00:19]}  Nxd5 {[%clk 0:00:21]} 30. cxd5 {[%clk 0:00:19]}  Qxd5 {[%clk 0:00:22]} 31. Nxb4 {[%clk 0:00:20]}  Qb5 {[%clk 0:00:22]} 32. a3 {[%clk 0:00:18]}  Rc7 {[%clk 0:00:21]} 33. Qf4 {[%clk 0:00:18]}  Bc8 {[%clk 0:00:21]} 34. Qe3 {[%clk 0:00:17]}  a5 {[%clk 0:00:21]} 35. Nc2 {[%clk 0:00:17]}  Rd3 {[%clk 0:00:21]} 36. Qxe4 {[%clk 0:00:17]}  Rxc6 {[%clk 0:00:21]} 37. Qf4+ {[%clk 0:00:16]}  Rc7 {[%clk 0:00:20]} 38. Ne3 {[%clk 0:00:17]}  Bb7+ {[%clk 0:00:21]} 39. Kg1 {[%clk 0:00:17]}  Qc6 {[%clk 0:00:21]} 40. Qf8+ {[%clk 0:00:16]}  Ka7 {[%clk 0:00:21]} 41. Rf6 {[%clk 0:00:15]}  Qh1+ {[%clk 0:00:21]} 42. Kf2 {[%clk 0:00:15]}  Rd2+ {[%clk 0:00:21]} 43. Re2 {[%clk 0:00:15]}  Qxh2+ {[%clk 0:00:21]} 44. Ke1 {[%clk 0:00:15]}  Qxe2# {[%clk 0:00:22]} 0-1


[Site "https://www.chess.com"]

[Event "Titled Tuesday Blitz June 14 Late 2022"]
[White "Roman, Rodrigo"]
[Black "Gurevich, Dmitry"]
[WhiteFideId "3701220"]
[BlackFideId "2000407"]
[WhiteElo "2001"]
[BlackElo "2506"]
[Result "1-0"]
[Round "08"]
[TimeControl "180+1"]
[Date "2022.06.15"]
[WhiteClock "0:00:40"]
[BlackClock "0:00:01"]

1. e4 {[%clk 0:03:00]}  c5 {[%clk 0:02:59]} 2. Nf3 {[%clk 0:03:01]}  d6 {[%clk 0:02:59]} 3. b3 {[%clk 0:03:00]}  Nf6 {[%clk 0:02:58]} 4. d3 {[%clk 0:02:43]}  g6 {[%clk 0:02:56]} 5. Bb2 {[%clk 0:02:43]}  Bg7 {[%clk 0:02:56]} 6. Nbd2 {[%clk 0:02:44]}  O-O {[%clk 0:02:56]} 7. Be2 {[%clk 0:02:44]}  Nc6 {[%clk 0:02:54]} 8. O-O {[%clk 0:02:43]}  e5 {[%clk 0:02:54]} 9. Nc4 {[%clk 0:02:44]}  Nh5 {[%clk 0:02:52]} 10. Re1 {[%clk 0:02:42]}  b5 {[%clk 0:02:45]} 11. Ne3 {[%clk 0:02:42]}  Nf4 {[%clk 0:02:45]} 12. Bf1 {[%clk 0:02:38]}  Nd4 {[%clk 0:02:43]} 13. Nxd4 {[%clk 0:02:36]}  cxd4 {[%clk 0:02:37]} 14. Nd5 {[%clk 0:02:31]}  Nxd5 {[%clk 0:02:36]} 15. exd5 {[%clk 0:02:32]}  Bb7 {[%clk 0:02:32]} 16. c4 {[%clk 0:02:29]}  dxc3 {[%clk 0:02:31]} 17. Bxc3 {[%clk 0:02:30]}  Bxd5 {[%clk 0:02:30]} 18. d4 {[%clk 0:02:30]}  Rc8 {[%clk 0:02:06]} 19. dxe5 {[%clk 0:02:20]}  Rxc3 {[%clk 0:01:42]} 20. Qxd5 {[%clk 0:02:19]}  dxe5 {[%clk 0:01:41]} 21. Qxb5 {[%clk 0:02:10]}  Rc2 {[%clk 0:01:35]} 22. Rad1 {[%clk 0:02:05]}  Qb6 {[%clk 0:01:26]} 23. Qxb6 {[%clk 0:02:05]}  axb6 {[%clk 0:01:26]} 24. a4 {[%clk 0:02:06]}  f5 {[%clk 0:01:19]} 25. Bc4+ {[%clk 0:02:06]}  Kh8 {[%clk 0:01:19]} 26. f3 {[%clk 0:01:53]}  e4 {[%clk 0:01:18]} 27. fxe4 {[%clk 0:01:52]}  Bc3 {[%clk 0:01:10]} 28. Rf1 {[%clk 0:01:44]}  f4 {[%clk 0:01:05]} 29. Rf2 {[%clk 0:01:40]}  Rxf2 {[%clk 0:01:02]} 30. Kxf2 {[%clk 0:01:41]}  g5 {[%clk 0:01:00]} 31. Kf3 {[%clk 0:01:41]}  h5 {[%clk 0:00:59]} 32. h3 {[%clk 0:01:42]}  Be5 {[%clk 0:00:49]} 33. Rd5 {[%clk 0:01:41]}  Re8 {[%clk 0:00:49]} 34. b4 {[%clk 0:01:28]}  Kg7 {[%clk 0:00:46]} 35. Rd7+ {[%clk 0:01:28]}  Kf6 {[%clk 0:00:44]} 36. Rf7+ {[%clk 0:01:27]}  Kg6 {[%clk 0:00:44]} 37. Rb7 {[%clk 0:01:26]}  Rc8 {[%clk 0:00:38]} 38. Rxb6+ {[%clk 0:01:24]}  Kg7 {[%clk 0:00:36]} 39. Rb7+ {[%clk 0:01:25]}  Kf6 {[%clk 0:00:31]} 40. Bd3 {[%clk 0:01:20]}  Rc3 {[%clk 0:00:28]} 41. Ke2 {[%clk 0:01:20]}  Ra3 {[%clk 0:00:26]} 42. Rb6+ {[%clk 0:01:13]}  Kg7 {[%clk 0:00:24]} 43. Rb7+ {[%clk 0:01:12]}  Kf6 {[%clk 0:00:24]} 44. a5 {[%clk 0:01:04]}  Ra2+ {[%clk 0:00:19]} 45. Kf3 {[%clk 0:00:51]}  Bd4 {[%clk 0:00:18]} 46. e5+ {[%clk 0:00:49]}  Kxe5 {[%clk 0:00:16]} 47. Rb5+ {[%clk 0:00:49]}  Kf6 {[%clk 0:00:09]} 48. Rf5+ {[%clk 0:00:48]}  Ke6 {[%clk 0:00:08]} 49. Rxg5 {[%clk 0:00:49]}  Rb2 {[%clk 0:00:06]} 50. b5 {[%clk 0:00:40]}  Rb3 {[%clk 0:00:03]} 51. Ke4 {[%clk 0:00:40]}  Bc3 {[%clk 0:00:02]} 52. Bc4+ {[%clk 0:00:40]}  Kf6 {[%clk 0:00:01]} 53. Rf5+ {[%clk 0:00:40]} 1-0


[Site "https://www.chess.com"]

[Event "Titled Tuesday Blitz June 14 Late 2022"]
[White "Romanchuk, Viktor"]
[Black "Kubatko, Ivan"]
[WhiteFideId "14109271"]
[BlackFideId "24111473"]
[WhiteElo "2242"]
[BlackElo "2285"]
[Result "1/2-1/2"]
[Round "08"]
[TimeControl "180+1"]
[Date "2022.06.15"]
[WhiteClock "0:00:03"]
[BlackClock "0:00:05"]

1. d4 {[%clk 0:03:00]}  d5 {[%clk 0:02:59]} 2. c4 {[%clk 0:03:00]}  e6 {[%clk 0:02:59]} 3. Nc3 {[%clk 0:03:00]}  c5 {[%clk 0:03:00]} 4. cxd5 {[%clk 0:02:59]}  cxd4 {[%clk 0:03:00]} 5. Qa4+ {[%clk 0:02:59]}  Bd7 {[%clk 0:03:00]} 6. Qxd4 {[%clk 0:02:59]}  exd5 {[%clk 0:03:01]} 7. Qxd5 {[%clk 0:02:59]}  Nc6 {[%clk 0:03:01]} 8. Qd1 {[%clk 0:02:59]}  Nf6 {[%clk 0:03:02]} 9. Nf3 {[%clk 0:02:59]}  Bc5 {[%clk 0:03:03]} 10. e3 {[%clk 0:02:59]}  Qe7 {[%clk 0:03:03]} 11. Be2 {[%clk 0:02:59]}  O-O-O {[%clk 0:03:03]} 12. O-O {[%clk 0:02:59]}  g5 {[%clk 0:03:04]} 13. Nd4 {[%clk 0:02:59]}  Kb8 {[%clk 0:02:43]} 14. b4 {[%clk 0:01:39]}  Bxb4 {[%clk 0:01:40]} 15. Nxc6+ {[%clk 0:01:25]}  Bxc6 {[%clk 0:01:39]} 16. Qb3 {[%clk 0:01:26]}  Rhe8 {[%clk 0:01:21]} 17. Rb1 {[%clk 0:01:20]}  Bd6 {[%clk 0:01:20]} 18. Nb5 {[%clk 0:01:16]}  Be5 {[%clk 0:00:58]} 19. Ba3 {[%clk 0:01:12]}  Qe6 {[%clk 0:00:54]} 20. Qxe6 {[%clk 0:00:28]}  fxe6 {[%clk 0:00:52]} 21. Rfc1 {[%clk 0:00:28]}  Be4 {[%clk 0:00:46]} 22. Rb4 {[%clk 0:00:22]}  Rc8 {[%clk 0:00:35]} 23. Rd1 {[%clk 0:00:15]}  Red8 {[%clk 0:00:22]} 24. Rxd8 {[%clk 0:00:14]}  Rxd8 {[%clk 0:00:23]} 25. f3 {[%clk 0:00:14]}  Bd3 {[%clk 0:00:17]} 26. Kf2 {[%clk 0:00:10]}  a6 {[%clk 0:00:16]} 27. Nd4 {[%clk 0:00:09]}  Bxe2 {[%clk 0:00:11]} 28. Kxe2 {[%clk 0:00:08]}  Bxd4 {[%clk 0:00:05]} 29. exd4 {[%clk 0:00:07]}  Nd5 {[%clk 0:00:05]} 30. Rb3 {[%clk 0:00:06]}  b5 {[%clk 0:00:04]} 31. Bc1 {[%clk 0:00:06]}  h6 {[%clk 0:00:03]} 32. h4 {[%clk 0:00:05]}  Rg8 {[%clk 0:00:04]} 33. hxg5 {[%clk 0:00:05]}  hxg5 {[%clk 0:00:05]} 34. g4 {[%clk 0:00:05]}  Kc7 {[%clk 0:00:05]} 35. Kd3 {[%clk 0:00:06]}  Kd6 {[%clk 0:00:04]} 36. Ke4 {[%clk 0:00:06]}  Rg7 {[%clk 0:00:04]} 37. Bd2 {[%clk 0:00:06]}  Kc6 {[%clk 0:00:03]} 38. Rb1 {[%clk 0:00:06]}  Kd6 {[%clk 0:00:04]} 39. Rc1 {[%clk 0:00:06]}  Rg8 {[%clk 0:00:03]} 40. Rh1 {[%clk 0:00:06]}  Rc8 {[%clk 0:00:02]} 41. Bxg5 {[%clk 0:00:04]}  Rc2 {[%clk 0:00:03]} 42. f4 {[%clk 0:00:02]}  Nc3+ {[%clk 0:00:03]} 43. Kd3 {[%clk 0:00:02]}  Rxa2 {[%clk 0:00:02]} 44. Kxc3 {[%clk 0:00:02]}  Ra3+ {[%clk 0:00:03]} 45. Kb4 {[%clk 0:00:02]}  Ra4+ {[%clk 0:00:03]} 46. Kb3 {[%clk 0:00:02]}  Ra3+ {[%clk 0:00:04]} 47. Kb4 {[%clk 0:00:02]}  Ra4+ {[%clk 0:00:04]} 48. Kb3 {[%clk 0:00:03]}  Rxd4 {[%clk 0:00:04]} 49. f5 {[%clk 0:00:03]}  Rxg4 {[%clk 0:00:03]} 50. Bd2 {[%clk 0:00:03]}  exf5 {[%clk 0:00:02]} 51. Rh6+ {[%clk 0:00:03]}  Kc5 {[%clk 0:00:03]} 52. Rxa6 {[%clk 0:00:04]}  Rg3+ {[%clk 0:00:02]} 53. Kc2 {[%clk 0:00:04]}  Kc4 {[%clk 0:00:03]} 54. Ra8 {[%clk 0:00:04]}  Rg2 {[%clk 0:00:02]} 55. Rc8+ {[%clk 0:00:05]}  Kd5 {[%clk 0:00:02]} 56. Rd8+ {[%clk 0:00:05]}  Ke4 {[%clk 0:00:03]} 57. Re8+ {[%clk 0:00:05]}  Kd5 {[%clk 0:00:03]} 58. Rd8+ {[%clk 0:00:05]}  Ke4 {[%clk 0:00:03]} 59. Rb8 {[%clk 0:00:05]}  f4 {[%clk 0:00:03]} 60. Rxb5 {[%clk 0:00:04]}  f3 {[%clk 0:00:03]} 61. Rb4+ {[%clk 0:00:04]}  Ke5 {[%clk 0:00:04]} 62. Rb5+ {[%clk 0:00:04]}  Ke4 {[%clk 0:00:03]} 63. Rb4+ {[%clk 0:00:04]}  Ke5 {[%clk 0:00:04]} 64. Rb8 {[%clk 0:00:04]}  f2 {[%clk 0:00:04]} 65. Re8+ {[%clk 0:00:04]}  Kd5 {[%clk 0:00:03]} 66. Rf8 {[%clk 0:00:04]}  Ke4 {[%clk 0:00:03]} 67. Re8+ {[%clk 0:00:04]}  Kf3 {[%clk 0:00:03]} 68. Rf8+ {[%clk 0:00:04]}  Ke2 {[%clk 0:00:04]} 69. Re8+ {[%clk 0:00:04]}  Kf1 {[%clk 0:00:04]} 70. Kd3 {[%clk 0:00:03]}  Kg1 {[%clk 0:00:05]} 71. Be3 {[%clk 0:00:03]}  Kh1 {[%clk 0:00:04]} 72. Rh8+ {[%clk 0:00:02]}  Rh2 {[%clk 0:00:04]} 73. Rxh2+ {[%clk 0:00:02]}  Kxh2 {[%clk 0:00:05]} 74. Bxf2 {[%clk 0:00:03]} 1/2-1/2


[Site "https://www.chess.com"]

[Event "Titled Tuesday Blitz June 14 Late 2022"]
[White "Sanal, Vahap"]
[Black "Peng, David Yu"]
[WhiteFideId "6300545"]
[BlackFideId "2605376"]
[WhiteElo "2574"]
[BlackElo "2166"]
[Result "0-1"]
[Round "08"]
[TimeControl "180+1"]
[Date "2022.06.14"]
[WhiteClock "0:00:01"]
[BlackClock "0:00:36"]

1. Nf3 {[%clk 0:03:00]}  d5 {[%clk 0:02:58]} 2. g3 {[%clk 0:03:00]}  c6 {[%clk 0:02:59]} 3. Bg2 {[%clk 0:03:00]}  Bg4 {[%clk 0:02:58]} 4. O-O {[%clk 0:03:00]}  Nd7 {[%clk 0:02:58]} 5. d3 {[%clk 0:02:59]}  e5 {[%clk 0:02:57]} 6. h3 {[%clk 0:02:59]}  Bxf3 {[%clk 0:02:57]} 7. Bxf3 {[%clk 0:02:59]}  Ngf6 {[%clk 0:02:58]} 8. Bg2 {[%clk 0:02:59]}  Be7 {[%clk 0:02:56]} 9. c4 {[%clk 0:03:00]}  d4 {[%clk 0:02:55]} 10. e3 {[%clk 0:02:56]}  dxe3 {[%clk 0:02:56]} 11. Bxe3 {[%clk 0:02:56]}  O-O {[%clk 0:02:56]} 12. Nc3 {[%clk 0:02:56]}  Bc5 {[%clk 0:02:54]} 13. Bd2 {[%clk 0:02:49]}  Re8 {[%clk 0:02:49]} 14. Qc2 {[%clk 0:02:47]}  a6 {[%clk 0:02:46]} 15. Rae1 {[%clk 0:02:46]}  h6 {[%clk 0:02:44]} 16. Kh1 {[%clk 0:02:46]}  Rc8 {[%clk 0:02:40]} 17. Ne4 {[%clk 0:02:44]}  Nxe4 {[%clk 0:02:40]} 18. Bxe4 {[%clk 0:02:43]}  Nf6 {[%clk 0:02:40]} 19. Bg2 {[%clk 0:02:44]}  Qd7 {[%clk 0:02:35]} 20. b4 {[%clk 0:02:43]}  Bd4 {[%clk 0:02:34]} 21. g4 {[%clk 0:02:35]}  Rcd8 {[%clk 0:02:32]} 22. Bc1 {[%clk 0:02:19]}  Ba7 {[%clk 0:02:31]} 23. Rd1 {[%clk 0:02:18]}  Qc7 {[%clk 0:02:23]} 24. g5 {[%clk 0:02:15]}  hxg5 {[%clk 0:02:17]} 25. Bxg5 {[%clk 0:02:16]}  Re6 {[%clk 0:02:16]} 26. c5 {[%clk 0:02:12]}  Bb8 {[%clk 0:02:16]} 27. Be4 {[%clk 0:02:09]}  Rd4 {[%clk 0:01:57]} 28. Bxf6 {[%clk 0:02:03]}  Rxf6 {[%clk 0:01:58]} 29. Rg1 {[%clk 0:02:00]}  Rh6 {[%clk 0:01:49]} 30. Rg3 {[%clk 0:01:58]}  Qd7 {[%clk 0:01:44]} 31. Rdg1 {[%clk 0:00:47]}  Rxh3+ {[%clk 0:01:30]} 32. Kg2 {[%clk 0:00:47]}  Rxg3+ {[%clk 0:01:30]} 33. fxg3 {[%clk 0:00:48]}  f5 {[%clk 0:01:29]} 34. Qb3+ {[%clk 0:00:48]}  Kf8 {[%clk 0:01:21]} 35. Rh1 {[%clk 0:00:48]}  fxe4 {[%clk 0:01:13]} 36. Rh8+ {[%clk 0:00:48]}  Ke7 {[%clk 0:01:13]} 37. Qg8 {[%clk 0:00:49]}  Kf6 {[%clk 0:00:37]} 38. Qxb8 {[%clk 0:00:10]}  Rxd3 {[%clk 0:00:37]} 39. Rf8+ {[%clk 0:00:10]}  Kg6 {[%clk 0:00:37]} 40. Qxe5 {[%clk 0:00:02]}  Rd2+ {[%clk 0:00:37]} 41. Rf2 {[%clk 0:00:01]}  Rxf2+ {[%clk 0:00:37]} 42. Kxf2 {[%clk 0:00:02]}  Qf5+ {[%clk 0:00:37]} 43. Qxf5+ {[%clk 0:00:02]}  Kxf5 {[%clk 0:00:38]} 44. Ke3 {[%clk 0:00:03]}  Ke5 {[%clk 0:00:36]} 45. g4 {[%clk 0:00:03]}  g5 {[%clk 0:00:36]} 46. a3 {[%clk 0:00:03]}  Kd5 {[%clk 0:00:37]} 47. a4 {[%clk 0:00:03]}  Ke5 {[%clk 0:00:36]} 48. a5 {[%clk 0:00:01]}  Kd5 {[%clk 0:00:36]} 49. Ke2 {[%clk 0:00:01]}  Kd4 {[%clk 0:00:36]} 0-1


[Site "https://www.chess.com"]

[Event "Titled Tuesday Blitz June 14 Late 2022"]
[White "Svane, Rasmus"]
[Black "Fedoseev, Vladimir"]
[WhiteFideId "4657101"]
[BlackFideId "24130737"]
[WhiteElo "2674"]
[BlackElo "2726"]
[Result "1-0"]
[Round "08"]
[TimeControl "180+1"]
[Date "2022.06.14"]
[WhiteClock "0:01:12"]
[BlackClock "0:01:01"]

1. Nf3 {[%clk 0:03:00]}  d5 {[%clk 0:02:55]} 2. g3 {[%clk 0:03:01]}  Nd7 {[%clk 0:02:53]} 3. d4 {[%clk 0:03:01]}  Nb6 {[%clk 0:02:52]} 4. Nc3 {[%clk 0:03:01]}  Bf5 {[%clk 0:02:52]} 5. Nh4 {[%clk 0:03:00]}  Bg4 {[%clk 0:02:52]} 6. h3 {[%clk 0:02:58]}  Bh5 {[%clk 0:02:52]} 7. a4 {[%clk 0:02:50]}  a5 {[%clk 0:02:44]} 8. Ng2 {[%clk 0:02:38]}  e6 {[%clk 0:02:41]} 9. Nf4 {[%clk 0:02:38]}  Bg6 {[%clk 0:02:41]} 10. Bg2 {[%clk 0:02:33]}  Bb4 {[%clk 0:02:38]} 11. O-O {[%clk 0:02:29]}  Bxc3 {[%clk 0:02:37]} 12. bxc3 {[%clk 0:02:30]}  Nf6 {[%clk 0:02:37]} 13. Ba3 {[%clk 0:02:16]}  Nc4 {[%clk 0:02:28]} 14. Nxg6 {[%clk 0:02:12]}  hxg6 {[%clk 0:02:27]} 15. Qd3 {[%clk 0:02:11]}  c6 {[%clk 0:02:24]} 16. Rfb1 {[%clk 0:02:05]}  b6 {[%clk 0:02:22]} 17. h4 {[%clk 0:02:03]}  g5 {[%clk 0:02:04]} 18. hxg5 {[%clk 0:01:59]}  Ng4 {[%clk 0:02:04]} 19. Qxc4 {[%clk 0:01:52]}  Kd7 {[%clk 0:01:54]} 20. Qd3 {[%clk 0:01:42]}  Rb8 {[%clk 0:01:37]} 21. Qf3 {[%clk 0:01:37]}  f5 {[%clk 0:01:33]} 22. gxf6 {[%clk 0:01:35]}  Nxf6 {[%clk 0:01:31]} 23. c4 {[%clk 0:01:34]}  Qc7 {[%clk 0:01:27]} 24. Bc1 {[%clk 0:01:15]}  Rbf8 {[%clk 0:01:06]} 25. Bf4 {[%clk 0:01:14]}  Qa7 {[%clk 0:01:06]} 26. Qb3 {[%clk 0:01:14]}  Nh5 {[%clk 0:01:01]} 27. Be5 {[%clk 0:01:12]} 1-0


[Site "https://www.chess.com"]

[Event "Titled Tuesday Blitz June 14 Late 2022"]
[White "Swicarz, Maciej"]
[Black "Daggupati, Balaji"]
[WhiteFideId "1113585"]
[BlackFideId "2090759"]
[WhiteElo "2049"]
[BlackElo "2697"]
[Result "1-0"]
[Round "08"]
[TimeControl "180+1"]
[Date "2022.06.14"]
[WhiteClock "0:00:10"]
[BlackClock "0:00:12"]

1. c4 {[%clk 0:03:00]}  e5 {[%clk 0:02:59]} 2. d3 {[%clk 0:03:00]}  Nf6 {[%clk 0:02:57]} 3. a3 {[%clk 0:02:58]}  a5 {[%clk 0:02:53]} 4. g3 {[%clk 0:02:57]}  d5 {[%clk 0:02:51]} 5. cxd5 {[%clk 0:02:56]}  Qxd5 {[%clk 0:02:52]} 6. Nf3 {[%clk 0:02:56]}  Nc6 {[%clk 0:02:48]} 7. Nc3 {[%clk 0:02:55]}  Qd8 {[%clk 0:02:44]} 8. Bg2 {[%clk 0:02:54]}  Bc5 {[%clk 0:02:44]} 9. O-O {[%clk 0:02:53]}  O-O {[%clk 0:02:45]} 10. Rb1 {[%clk 0:02:49]}  Be6 {[%clk 0:02:43]} 11. Ng5 {[%clk 0:02:46]}  Bf5 {[%clk 0:02:37]} 12. Nge4 {[%clk 0:02:40]}  Nxe4 {[%clk 0:02:33]} 13. Nxe4 {[%clk 0:02:41]}  Be7 {[%clk 0:02:33]} 14. Be3 {[%clk 0:02:38]}  Be6 {[%clk 0:02:33]} 15. Nc5 {[%clk 0:02:34]}  Bxc5 {[%clk 0:02:27]} 16. Bxc5 {[%clk 0:02:35]}  Bd5 {[%clk 0:02:27]} 17. Bxf8 {[%clk 0:02:33]}  Bxg2 {[%clk 0:02:27]} 18. Kxg2 {[%clk 0:02:32]}  Kxf8 {[%clk 0:02:26]} 19. Rc1 {[%clk 0:02:27]}  Nd4 {[%clk 0:02:22]} 20. Kg1 {[%clk 0:02:14]}  Ra6 {[%clk 0:02:14]} 21. e3 {[%clk 0:02:10]}  Ne6 {[%clk 0:02:13]} 22. Qf3 {[%clk 0:02:04]}  Rb6 {[%clk 0:02:12]} 23. Qe2 {[%clk 0:01:53]}  Qd5 {[%clk 0:02:12]} 24. Rc4 {[%clk 0:01:44]}  Rd6 {[%clk 0:02:01]} 25. Rd1 {[%clk 0:01:39]}  c6 {[%clk 0:01:56]} 26. b4 {[%clk 0:01:32]}  Ng5 {[%clk 0:01:51]} 27. e4 {[%clk 0:01:23]}  Qb5 {[%clk 0:01:50]} 28. Rc5 {[%clk 0:01:18]}  Qb6 {[%clk 0:01:50]} 29. Rxa5 {[%clk 0:01:14]}  Qd4 {[%clk 0:01:43]} 30. Qe3 {[%clk 0:01:08]}  Ne6 {[%clk 0:01:16]} 31. Qxd4 {[%clk 0:01:04]}  Nxd4 {[%clk 0:01:17]} 32. Kg2 {[%clk 0:01:03]}  f6 {[%clk 0:01:14]} 33. f4 {[%clk 0:01:01]}  exf4 {[%clk 0:01:12]} 34. gxf4 {[%clk 0:01:02]}  Rd7 {[%clk 0:01:06]} 35. Kf2 {[%clk 0:01:00]}  Kf7 {[%clk 0:01:04]} 36. Ra8 {[%clk 0:00:58]}  Re7 {[%clk 0:01:02]} 37. Ke3 {[%clk 0:00:55]}  Nc2+ {[%clk 0:01:01]} 38. Kd2 {[%clk 0:00:55]}  Nd4 {[%clk 0:01:01]} 39. Rf1 {[%clk 0:00:49]}  Rd7 {[%clk 0:00:58]} 40. Rb8 {[%clk 0:00:42]}  h6 {[%clk 0:00:49]} 41. f5 {[%clk 0:00:41]}  Ke7 {[%clk 0:00:46]} 42. a4 {[%clk 0:00:34]}  Nb3+ {[%clk 0:00:38]} 43. Kc3 {[%clk 0:00:33]}  Nd4 {[%clk 0:00:39]} 44. Ra1 {[%clk 0:00:32]}  Ne2+ {[%clk 0:00:38]} 45. Kd2 {[%clk 0:00:32]}  Nf4 {[%clk 0:00:38]} 46. Ra3 {[%clk 0:00:30]}  Nh3 {[%clk 0:00:28]} 47. a5 {[%clk 0:00:30]}  Nf2 {[%clk 0:00:28]} 48. Kc3 {[%clk 0:00:28]}  Nd1+ {[%clk 0:00:27]} 49. Kd2 {[%clk 0:00:24]}  Nf2 {[%clk 0:00:27]} 50. Ke2 {[%clk 0:00:23]}  Ng4 {[%clk 0:00:26]} 51. h3 {[%clk 0:00:23]}  Ne5 {[%clk 0:00:26]} 52. a6 {[%clk 0:00:20]}  bxa6 {[%clk 0:00:27]} 53. Rb6 {[%clk 0:00:20]}  Kd6 {[%clk 0:00:26]} 54. Rbxa6 {[%clk 0:00:19]}  Rb7 {[%clk 0:00:25]} 55. Rb3 {[%clk 0:00:17]}  Kd7 {[%clk 0:00:18]} 56. Ra8 {[%clk 0:00:16]}  Ke7 {[%clk 0:00:17]} 57. Rg8 {[%clk 0:00:15]}  Kf7 {[%clk 0:00:17]} 58. Rc8 {[%clk 0:00:15]}  g6 {[%clk 0:00:17]} 59. d4 {[%clk 0:00:14]}  Nd7 {[%clk 0:00:16]} 60. fxg6+ {[%clk 0:00:14]}  Kxg6 {[%clk 0:00:16]} 61. Rxc6 {[%clk 0:00:14]}  Kf7 {[%clk 0:00:15]} 62. Kd3 {[%clk 0:00:13]}  Ra7 {[%clk 0:00:15]} 63. b5 {[%clk 0:00:13]}  Nb8 {[%clk 0:00:14]} 64. Rc5 {[%clk 0:00:11]}  Rb7 {[%clk 0:00:13]} 65. b6 {[%clk 0:00:11]}  Na6 {[%clk 0:00:13]} 66. Ra5 {[%clk 0:00:09]}  Nb8 {[%clk 0:00:12]} 67. Ra7 {[%clk 0:00:10]} 1-0


[Site "https://www.chess.com"]